Cogmind - Beta 16 @@@ ROGUE MODE // 2026.01.12 @ 00:05:06 Player: FR-13D Result: Destroyed by Y-54 Guardian with Flak Gun Performance ------------- Evolutions (3) 1500 Regions Visited (5) 1000 Robots Destroyed (153) 765 Value Destroyed (4552) 4552 Prototype IDs (11) 220 Alien Tech Used (0) 0 Bonus (186) 186 TOTAL SCORE: 8223 Bonus ------- High Alert Combat Kills 186 Cogmind --------- Core Integrity 0/700 Matter 12/300 Energy 290/290 System Corruption 7% Temperature Cool (6) Movement Treading (195) Ox1 Location -7/Factory Parts ------- > --- POWER (1) -------- Improved Deuterium Engine > --- PROPULSION (3) --- Advanced Treads Medium Treads Medium Treads > --- UTILITY (7) ------ Improved Heat Sink Huge Storage Unit Improved Signal Interpreter Improved Terrain Scanner Improved Terrain Scan Processor Core Analyzer Improved Medium Armor Plating (fused) > --- WEAPON (2) ------- Ion Burst Cannon Gauss Cannon > --- INVENTORY (25) --- Light Treads Advanced Treads Medium Treads Medium Treads Wheel Wheel Armored Wheel Improved Heat Sink High-capacity Matter Pod (0) Improved Targeting Computer Advanced Targeting Computer Launcher Guidance Computer Recoil Stabilizer Weapon Cycler Core Shielding Medium Reactive Plating Hacking Suite Hacking Suite Proton Missile Launcher Grenade Launcher Improved Datajack Great Maul Peak State ------------ > --- POWER ------------ Improved Deuterium Engine > --- PROPULSION ------- Armored Wheel Armored Huge Wheel > --- UTILITY ---------- Improved Heat Sink Huge Storage Unit Improved Signal Interpreter Core Analyzer Recoil Stabilizer Improved Medium Armor Plating Medium Reactive Plating > --- WEAPON ----------- Ion Burst Cannon Gauss Cannon > --- INVENTORY -------- Light Treads Advanced Treads Advanced Treads Medium Treads Medium Treads Medium Treads Medium Treads High-capacity Matter Pod Improved Terrain Scanner Improved Terrain Scan Processor Advanced Targeting Computer Launcher Guidance Computer Core Shielding Hacking Suite Hacking Suite Proton Missile Launcher Grenade Launcher Improved Datajack Great Maul [Rating: 51] Favorites ----------- Power Heavy Ion Engine Engine Heavy Ion Engine Propulsion Wheel Treads Medium Treads Leg Light Armored Exoskeleton Wheel Wheel Utility Huge Storage Unit Device Improved Sensor Array Storage Huge Storage Unit Processor Improved Signal Interpreter Protection Layered Light Armor Plating Weapon Assault Cannon Energy Gun Medium Laser Energy Cannon Ion Burst Cannon Ballistic Gun Assault Rifle Ballistic Cannon Assault Cannon Launcher Grenade Launcher Special Weapon Mining Laser Impact Weapon Great Maul Special Melee Weapon Improved Datajack Build | -11 -10 -9 -8 -8 -7 ------- Run | Yrd Mat Mat Mat Sto Fac Slots Evolved 6 | . . 2 2 . 2 Power . | . . . . . . Propulsion 1 | . . . . . 1 Utility 5 | . . 2 2 . 1 Weapon . | . . . . . . Parts Attached 118 | 8 7 23 27 10 43 Power 11 | 1 1 2 4 1 2 Engine 11 | 1 1 2 4 1 2 Core . | . . . . . . Reactor . | . . . . . . Propulsion 35 | 3 2 6 9 2 13 Treads 16 | . . 3 4 . 9 Leg 1 | . . . . . 1 Wheel 18 | 3 2 3 5 2 3 Hover . | . . . . . . Flight . | . . . . . . Utility 47 | 2 2 7 11 5 20 Device 18 | 1 . 2 3 1 11 Storage 4 | 1 2 1 . . . Processor 10 | . . 2 3 2 3 Hackware . | . . . . . . Protection 15 | . . 2 5 2 6 Artifact . | . . . . . . Weapon 25 | 2 2 8 3 2 8 Energy Gun 4 | 1 1 2 . . . Energy Cannon 1 | . . . . 1 . Ballistic Gun 6 | 1 . 4 . . 1 Ballistic Cannon 9 | . . . 3 1 5 Launcher 1 | . . . . . 1 Special Weapon 1 | . 1 . . . . Impact Weapon 2 | . . 1 . . 1 Slashing Weapon . | . . . . . . Piercing Weapon . | . . . . . . Special Melee Weapon 1 | . . 1 . . . Unidentified Prototypes 3 | . . 1 1 1 . Parts Lost 40 | . . 6 2 2 30 Power 4 | . . 1 1 . 2 Propulsion 10 | . . 2 1 . 7 Utility 18 | . . 1 . 2 15 Weapon 8 | . . 2 . . 6 Highest Loss Streak 8 | . . 2 2 1 8 To Critical Strikes 1 | . . . . . 1 Average Backups 21 | 3 9 18 24 24 21 Power . | . . . . 1 . Propulsion 6 | 1 3 3 6 7 7 Utility 8 | . 1 7 10 10 9 Weapon 4 | . 3 7 5 4 3 Tool/Special . | . . . . . . Unused Backups 36 | . 3 3 11 4 15 Power 1 | . . . 1 . . Propulsion 4 | . . . 1 . 3 Utility 19 | . 2 1 3 2 11 Weapon 11 | . 1 1 6 2 1 Tool/Special 1 | . . 1 . . . Average Slot Usage (%) 94 | . 100 87 99 99 91 Engine 8 | . 14 10 8 8 6 Treads 3 | . . 4 1 . 6 Wheel 16 | . 28 15 16 17 11 Device 10 | . 14 13 10 5 12 Storage 9 | . 14 11 9 9 7 Processor 15 | . . 6 17 20 17 Protection 12 | . . 3 16 17 12 Energy Gun 2 | . 14 7 . . . Ballistic Gun 2 | . 13 10 . . . Ballistic Cannon 11 | . . . 17 17 9 Peak Build Rating 51 | 7 8 20 37 39 51 Average Rating 30 | 5 7 14 30 35 43 On Entrance 17 | . 7 8 19 35 34 Avg Prop Armor Cover (%) 5 | . . . 3 3 8 Naked Turns . | . . . . . . Heaviest Build 134 | 15 50 101 114 114 134 Greatest Support 84 | 26 20 40 56 26 84 Greatest Overweight (x) 11 | . 2 10 11 10 9 Average Overweight (x) 3 | . . 3 4 4 2 Largest Inventory Capacity 25 | 8 20 25 25 25 25 Average Capacity 23 | 7 11 21 25 25 25 Most Carried 25 | 8 12 25 25 25 25 Average Carried 21 | 4 9 18 24 24 21 Final Capacity 25 | 8 20 25 25 25 25 Final Carried 25 | 8 11 24 25 25 22 Class Distribution -------------------- 76% | Mutant 13% | Scavenger-Mutant 8% | Skirmisher Dominant Class ---------------- Mutant | -10/Materials Mutant | -9/Materials Mutant | -8/Materials Mutant | -8/Storage Mutant | -7/Factory Resources | -11 -10 -9 -8 -8 -7 ----------- Run | Yrd Mat Mat Mat Sto Fac Matter Collected 4604 | 331 131 826 1218 920 1178 Remotely 974 | . . 419 . . 555 Salvage Created 5062 | 171 360 1198 1062 918 1353 Parts 288 | 9 30 63 68 48 70 Haulers Intercepted 11 | . . 2 4 3 2 Recyclers Shooed 6 | . 1 . 2 3 . Parts Field Recycled . | . . . . . . Retrieved Matter . | . . . . . . Parts Self-Destructed . | . . . . . . Prevented . | . . . . . . Parts Restored . | . . . . . . Kills | -11 -10 -9 -8 -8 -7 ------- Run | Yrd Mat Mat Mat Sto Fac Combat Hostiles Destroyed 94 | . 9 23 12 15 35 Melee 7 | . . . . . 7 Guns 33 | . 9 22 . . 2 Cannons 44 | . . . 12 15 17 AOE 7 | . . . . . 7 Classes Destroyed 17 | 2 4 6 2 . 3 Worker 11 | . . 3 3 3 2 Builder 8 | . 1 2 2 . 3 Tunneler 7 | 5 . . 2 . . Hauler 11 | . . 2 4 3 2 Recycler 12 | 1 1 2 4 3 1 Mechanic 2 | . . 1 1 . . Operator 3 | . 2 . . 1 . Watcher 5 | . . 1 2 2 . Swarmer 17 | . 6 11 . . . Grunt 27 | . 3 4 4 4 12 Brawler 2 | . . 1 . . 1 Duelist 2 | . . . . . 2 Sentry 25 | . . 7 4 9 5 Specialist 5 | . . . 2 . 3 Hunter 9 | . . . 2 2 5 Programmer 6 | . . . . . 6 Heavy 1 | . . . . . 1 Best Kill Streak 10 | 4 7 6 5 3 10 Combat Bots Only 9 | . 6 5 3 2 9 Max Kills in Single Turn 3 | 1 1 1 2 1 3 Gunslinging . | . . . . . . Exploded 2 | . . . . . 2 Melee 1 | . . . . . 1 Uniques/NPCs Destroyed . | . . . . . . Combat | -11 -10 -9 -8 -8 -7 -------- Run | Yrd Mat Mat Mat Sto Fac Hostile Shots Fired 1029 | . 40 130 63 50 746 Missed 315 | . 13 27 18 11 246 Hits 714 | . 27 103 45 39 500 Melee 3 | . . . . . 3 Projectile 711 | . 27 103 45 39 497 AOE 1 | . . . . . 1 Critical Strikes 20 | . 1 7 1 2 9 Part Disruptions 1 | . . . . . 1 Damage Taken 8794 | . 249 1257 785 608 5895 Core 1216 | . 20 269 113 109 705 Absorbed by Shields . | . . . . . . Regen/Repaired (Parts) 201 | . . . . 141 60 Core Remaining (%) 70 | 100 92 32 . 59 . Volleys Fired 375 | 17 29 75 81 66 107 Largest 2 | 2 2 2 2 2 2 Hottest 140 | 70 100 73 74 74 140 Shots Fired 719 | 34 56 138 162 133 196 Gun 244 | 34 54 138 . . 18 Cannon 467 | . . . 162 133 172 Launcher 6 | . . . . . 6 Special 2 | . 2 . . . . Kinetic 599 | 17 27 89 162 133 171 Thermal 91 | 17 29 26 . . 19 Explosive 6 | . . . . . 6 Electromagnetic 23 | . . 23 . . . Robot Hit Streak 21 | 6 9 21 19 21 14 Robot Miss Streak 6 | 3 5 6 6 2 6 Penetration Max . | . . . . . . Secondary Targets 7 | . 2 5 . . . Max Gunslinging Chain 1 | . 1 1 . . . Shots Hit Robots 482 | 21 32 110 81 86 152 Core Hits 213 | 7 20 45 37 34 70 Critical Kills . | . . . . . . Critical Parts Destroyed 17 | . . 5 . . 12 Critical Strikes 28 | . . 9 3 2 14 Burn 4 | . . 4 . . . Destroy 3 | . . 3 . . . Blast 7 | . . . 3 2 2 Smash 14 | . . 2 . . 12 Melee Attacks 55 | . . 15 . . 40 Impact 54 | . . 14 . . 40 Slashing . | . . . . . . Piercing . | . . . . . . Sneak Attacks 5 | . . 4 . . 1 Combat Hostiles . | . . . . . . Follow-up Attacks . | . . . . . . Damage Inflicted 12244 | 273 457 1781 2110 2117 5506 Guns 2474 | 273 457 1514 . . 230 Cannons 7054 | . . . 2110 2117 2827 Explosions 1073 | . . . . . 1073 Melee 1643 | . . 267 . . 1376 Ramming . | . . . . . . Kinetic 8055 | 160 235 856 2110 2117 2577 Thermal 1197 | 113 222 287 . . 575 Explosive 978 | . . . . . 978 Electromagnetic 371 | . . 371 . . . Impact 1643 | . . 267 . . 1376 Slashing . | . . . . . . Piercing . | . . . . . . Highest Corruption 7 | . 3 . . 1 7 Average Corruption 2 | . 2 . . 1 3 Corruption Purged . | . . . . . . Corruption Blocked . | . . . . . . Effects 51 | . 2 . . 20 29 Message Errors 7 | . . . . 6 1 Matter Fused 13 | . . . . 7 6 Heat Flow Errors 9 | . . . . 3 6 Energy Discharges 3 | . . . . . 3 Parts Fused 1 | . . . . . 1 Data Loss (minor) 8 | . . . . 2 6 Data Loss (major) 5 | . 2 . . 1 2 Misfires 2 | . . . . 1 1 Alerts 3 | . . . . . 3 Overload Shots . | . . . . . . Overflow Damage 1055 | . . 161 15 61 818 Projectiles 200 | . . . 15 61 124 Explosions 18 | . . . . . 18 Melee 837 | . . 161 . . 676 Knockbacks 50 | . . . 14 10 26 Impact 5 | . . . . . 5 Kinetic 41 | . . . 14 10 17 Secondary 4 | . . . . . 4 Self-Inflicted Damage . | . . . . . . Shots . | . . . . . . Rammed . | . . . . . . Targets Rammed . | . . . . . . Kicked . | . . . . . . Crushed . | . . . . . . Highest Temperature 399 | 108 186 81 228 349 399 Average Temperature 66 | 43 51 24 48 68 105 Received Heat Transfer 2235 | . 60 504 126 225 1320 Effects 4 | . . . . 1 3 Shutdowns 1 | . . . . . 1 Energy Bleed 1 | . . . . . 1 Matter Decay 1 | . . . . . 1 Short Circuit 1 | . . . . 1 . Siege Activations . | . . . . . . Martial Activations . | . . . . . . Shielding Activations . | . . . . . . Robots Disrupted . | . . . . . . Combat Hostiles . | . . . . . . Robots Corrupted 5 | . . 3 . . 2 Combat Hostiles 3 | . . 1 . . 2 Parts Fried 7 | . . 6 . . 1 Impact Corruptions 34 | . . 7 . . 27 Robots Melted . | . . . . . . Combat Hostiles . | . . . . . . Parts Melted 8 | . 2 6 . . . Heat Transferred 2796 | 333 666 1147 . . 650 Parts Sabotaged . | . . . . . . Parts Stolen . | . . . . . . Parts Stripped . | . . . . . . Power Chain Reactions . | . . . . . . Alert | -11 -10 -9 -8 -8 -7 ------- Run | Yrd Mat Mat Mat Sto Fac Maximum Alert Level 3 | . . 1 . . 3 Low Security (%) 76 | 100 100 45 100 100 52 Level 1 14 | . . 54 . . 18 Level 2 6 | . . . . . 21 Level 3 2 | . . . . . 7 Level 4 . | . . . . . . Level 5 . | . . . . . . High Security . | . . . . . . Max Security . | . . . . . . Peak Influence 727 | 10 176 295 119 163 727 Initial 105 | . . 37 105 32 54 Average 134 | 2 99 162 70 57 244 Influence Increases 3540 | 30 284 747 525 585 1369 Destroy 0b10 Robot/C 1880 | . 180 460 240 300 700 Destroy 0b10 Robot/NC 295 | 30 20 55 90 60 40 Destroy Leader 560 | . 30 116 82 130 202 Successful Hack 120 | . 6 23 11 18 62 Disable Machine 345 | . . 30 60 60 195 Destroy Structure 130 | . 3 3 42 17 65 Partial Spotted 15 | . . . . . 15 Lose Combat Pursuer 195 | . 45 60 . . 90 Influence Decreases 2827 | 30 195 586 698 541 777 Entered New Map 309 | . . 52 145 45 67 Time Decay 2118 | 30 195 474 533 476 410 Lost Part 400 | . . 60 20 20 300 Squads Dispatched 26 | . 3 . 1 2 20 Investigation 5 | . 1 . . 1 3 Extermination 3 | . . . . . 3 Reinforcement 8 | . 2 . 1 1 4 Assault 1 | . . . . . 1 Garrison 9 | . . . . . 9 Intercept . | . . . . . . Searches Triggered . | . . . . . . Construction Impeded 2 | . . . . . 2 Haulers Reinforced . | . . . . . . Active Scanning Responses . | . . . . . . Cargo Convoy Interrupts 1 | . . . . . 1 Stealth | -11 -10 -9 -8 -8 -7 --------- Run | Yrd Mat Mat Mat Sto Fac Distress Signals 8 | . . 3 2 1 2 Communications Jammed . | . . . . . . Distress Signals . | . . . . . . Times Spotted 146 | . 16 28 22 22 58 Peak Tracking Total 11 | . 6 6 3 2 11 Tactical Retreats 8 | . 1 3 . . 4 Traps | -11 -10 -9 -8 -8 -7 ------- Run | Yrd Mat Mat Mat Sto Fac Traps Triggered 12 | . 3 1 . 5 3 Indirectly . | . . . . . . Trap Hack Attempts 58 | . . 45 . 13 . Triggered . | . . . . . . Disarmed 1 | . . . . 1 . Reprogrammed 5 | . . 5 . . . Reused . | . . . . . . Traps Extracted . | . . . . . . Installed . | . . . . . . Triggered . | . . . . . . Machines | -11 -10 -9 -8 -8 -7 ---------- Run | Yrd Mat Mat Mat Sto Fac Machines Disabled 23 | . . 2 4 4 13 Max in Single Turn 9 | . . 1 1 1 9 Garrison Access 1 | . . . . 1 . Machines Repaired . | . . . . . . Machines Dismantled . | . . . . . . Machines Sabotaged . | . . . . . . Overloaded Fab Kills . | . . . . . . Hacking | -11 -10 -9 -8 -8 -7 --------- Run | Yrd Mat Mat Mat Sto Fac Machines Accessed 37 | . 2 6 8 12 9 Terminals 24 | . 2 4 6 8 4 Fabricators 1 | . . . . . 1 Repair Stations 4 | . . . 1 2 1 Recycling Units 3 | . . 1 . 1 1 Scanalyzers 4 | . . 1 1 . 2 Garrison Access 1 | . . . . 1 . Total Hacks 103 | . 5 15 21 28 34 Successful 58 | . 3 8 12 16 19 Failed 44 | . 2 7 8 12 15 Catastrophic 3 | . 1 . 1 1 . Database Lockouts 1 | . . . 1 . . Manual 44 | . 5 9 6 16 8 Terminals 67 | . 5 12 15 22 13 Fabricators 2 | . . . . . 2 Repair Stations 10 | . . . 2 4 4 Recycling Units 4 | . . 1 . 1 2 Scanalyzers 19 | . . 2 4 . 13 Garrison Access 1 | . . . . 1 . Terminal Hacks 18 | . 2 3 5 7 1 Record 1 | . . . . 1 . Part Schematic 1 | . 1 . . . . Robot Analysis 4 | . 1 1 2 . . Prototype ID Bank 4 | . . 2 1 1 . Open Door 3 | . . . . 3 . Alert Level 1 | . . . 1 . . Locate Traps 2 | . . . . 1 1 Zone Layout 2 | . . . 1 1 . Fabricator Hacks 2 | . . . . . 2 Load Schematic 1 | . . . . . 1 Build 1 | . . . . . 1 Repair Station Hacks 7 | . . . 1 4 2 Scan Component 4 | . . . 1 2 1 Repair 3 | . . . . 2 1 Recycling Unit Hacks . | . . . . . . Scanalyzer 14 | . . 1 3 . 10 Insert Component 4 | . . . 2 . 2 Analyze 2 | . . . 1 . 1 Retrieve Study 8 | . . 1 . . 7 Garrison Access Hacks 1 | . . . . 1 . Seal Access 1 | . . . . 1 . Unauthorized Hacks 16 | . 1 4 3 4 4 Terminals 14 | . 1 3 3 4 3 Botnet 14 | . 1 3 3 4 3 Fabricators . | . . . . . . Repair Stations . | . . . . . . Recycling Units 2 | . . 1 . . 1 Recyclers 1 | . . . . . 1 Mask 1 | . . 1 . . . Scanalyzers . | . . . . . . Garrison Access . | . . . . . . Data Cores Recovered 2 | . 1 . . 1 . Used . | . . . . . . Hacking Detections 29 | . 2 5 7 7 8 Full Trace Events 7 | . . . 1 3 3 Feedback Events . | . . . . . . Feedback Blocked . | . . . . . . Robot Schematics Acquired . | . . . . . . Robots Built . | . . . . . . Authchips . | . . . . . . Time . | . . . . . . Total Robot Build Rating . | . . . . . . Part Schematics Acquired 3 | . 1 . 1 . 1 Parts Built . | . . . . . . Authchips . | . . . . . . Time 36 | . . . . . 36 Total Part Build Rating . | . . . . . . Part Studies Acquired 8 | . . 1 . . 7 Parts Repaired 3 | . . . . 2 1 Time 101 | . . . . 82 19 Parts Recycled . | . . . . . . Recycled Matter . | . . . . . . Retrieved Matter . | . . . . . . Retrieved Components . | . . . . . . Parts Scanalyzed 3 | . . . 2 . 1 Part Schematics Acquired 2 | . . . 1 . 1 Parts Damaged 1 | . . . 1 . . Bothacking | -11 -10 -9 -8 -8 -7 ------------ Run | Yrd Mat Mat Mat Sto Fac Used RIF Installer . | . . . . . . Robots Hacked . | . . . . . . Non-combat . | . . . . . . Combat . | . . . . . . Robot Hacks Applied . | . . . . . . Relay Couplers Released 4 | . . . . . 4 Programmers 4 | . . . . . 4 Fabnet Peak Effective % . | . . . . . . Robots Rewired . | . . . . . . Allies Hacked . | . . . . . . Hacks Repelled . | . . . . . . Allies | -11 -10 -9 -8 -8 -7 -------- Run | Yrd Mat Mat Mat Sto Fac Total Allies . | . . . . . . Largest Group . | . . . . . . Highest-Rated Group . | . . . . . . Highest-Rated Ally . | . . . . . . Total Orders . | . . . . . . Ally Attacks . | . . . . . . Total Damage . | . . . . . . Kills . | . . . . . . Allies Corrupted . | . . . . . . Allies Melted . | . . . . . . Intel | -11 -10 -9 -8 -8 -7 ------- Run | Yrd Mat Mat Mat Sto Fac Active Infowar (turns) 4946 | 34 482 981 1510 555 1384 Optics 1044 | . . . . 536 508 Sensors 2381 | . . . 1498 19 864 Terrain 1766 | . . 926 543 . 297 Seismic 571 | 34 482 55 . . . T.N.C. 152 | . . 152 . . . Robot Analysis Total 4 | . 1 1 2 . . Derelict Logs Recovered . | . . . . . . Drone Launches . | . . . . . . Drone Recoveries . | . . . . . . Exploration | -11 -10 -9 -8 -8 -7 ------------- Run | Yrd Mat Mat Mat Sto Fac Turns Passed 7575 | 141 482 1254 1742 1710 2246 Spaces Moved 4103 | 81 395 589 911 910 1217 Core 1 | 1 . . . . . Treads 232 | . . 27 27 . 178 Legs . | . . . . . . Wheels 3870 | 80 395 562 884 910 1039 Hover . | . . . . . . Flight . | . . . . . . Fastest Speed 50 | 50 80 110 130 140 115 Average Speed 135 | 85 88 138 151 144 133 Slowest Speed 320 | 100 110 320 240 220 240 Overloaded Moves . | . . . . . . Propulsion Burnouts . | . . . . . . Robots Hopped . | . . . . . . Potential Cave-ins . | . . . . . . Cave-ins Triggered . | . . . . . . Exploration Rate (%) 47 | 4 47 41 60 96 38 Regions Visited 5 Branch Regions 1 Pre-discovered Areas 1 | . . . . 1 . Known Exits Taken 2 | . . . 1 1 . Unknown Exits Taken 3 | 1 1 1 . . . Scrap Searched . | . . . . . . Spaces Dug 12 | . 2 2 3 . 5 Terrain Destroyed 118 | . 2 2 39 13 62 Melee 6 | . . 2 . . 4 Projectile 65 | . 2 . 39 13 11 AOE 47 | . . . . . 47 Terrain Rammed . | . . . . . . Walls Destroyed . | . . . . . . Machines Disabled . | . . . . . . Actions | -11 -10 -9 -8 -8 -7 --------- Run | Yrd Mat Mat Mat Sto Fac Total 5296 | 114 471 861 1123 1178 1549 Wait 314 | . 19 55 38 137 65 Move 4098 | 80 394 588 910 909 1217 Hop . | . . . . . . Pick Up 108 | 8 10 27 26 11 26 Fast Attach 33 | 7 . 3 1 6 16 Attach 40 | . . 7 5 3 25 Detach 6 | . . 2 1 . 3 Swap 104 | 1 8 31 29 10 25 Drop 88 | 1 11 13 32 14 17 Fire 375 | 17 29 75 81 66 107 Melee 55 | . . 15 . . 40 Ram . | . . . . . . Kick . | . . . . . . Crush . | . . . . . . Escape Stasis 16 | . . . . 8 8 Rewire 1 | . . . . 1 . Trap 58 | . . 45 . 13 . Miscellaneous . | . . . . . . Route ------- -11/Scrapyard -10/Materials (discovered 2 exits: *Mat / [*Min]) -9/Materials -8/Materials -8/Storage -7/Factory History --------- Turn | Location | Event 8 | -11/Scrapyard | Discovered new exit (range 16) 142 | -11/Scrapyard | Entered Materials 343 | -10/Materials | Build established: Mutant 533 | -10/Materials | Discovered new exit (range 14) 533 | -10/Materials | Discovered new exit (range 7) 624 | -10/Materials | Entered another Materials area 624 | -9/Materials | Evolved 2 slots: Utility x2 1211 | -9/Materials | Core integrity fell below 50% 1687 | -9/Materials | Build established: Scavenger-Mutant 1791 | -9/Materials | Discovered new exit (range 13) 1878 | -9/Materials | Entered another Materials area 1878 | -8/Materials | Evolved 2 slots: Utility x2 2261 | -8/Materials | Central database locked down 2380 | -8/Materials | Build established: Skirmisher 2714 | -8/Materials | Build established: Mutant 3558 | -8/Materials | Discovered new exit (range 15) 3583 | -8/Materials | Identified exit to Storage 3620 | -8/Materials | Entered Storage 3780 | -8/Storage | Repaired Broken Arm. Wheel 4026 | -8/Storage | Discovered new exit (range 15) 4737 | -8/Storage | Learned location of Armory (-4) 4889 | -8/Storage | Repaired Assault Cannon 5328 | -8/Storage | Identified exit to Factory 5330 | -8/Storage | Entered Factory 5330 | -7/Factory | Evolved 2 slots: Propulsion x1, Utility x1 5779 | -7/Factory | Repaired Hrd. Medium Armor Plating 6337 | -7/Factory | Garrison activated, responded to threat 6517 | -7/Factory | Lost 5 parts (3u2w) 6601 | -7/Factory | Cargo convoy interrupted 6657 | -7/Factory | Core integrity fell below 50% 6675 | -7/Factory | Lost 3 parts (1u2w) 6747 | -7/Factory | Lost 5 parts (2n3u) 6758 | -7/Factory | Destroyed 8 combat bots 6979 | -7/Factory | Garrison activated, responded to threat 7005 | -7/Factory | Core integrity fell below 20% 7048 | -7/Factory | Destroyed 9 combat bots 7088 | -7/Factory | Lost 8 parts (2n4u2w) 7330 | -7/Factory | First assault squad dispatched 7359 | -7/Factory | Garrison activated, responded to threat 7576 | -7/Factory | Destroyed by Y-54 Guardian with Flak Gun Last Messages --------------- 07374_ System corrupted: Heat flow error (+111). 07376_ Acquired Wheel+. 07376_ U-05 Engineer works on Assembly Bed. 07378_ Acquired Wheel+. 07381_ U-05 Engineer works on Assembly Bed. 07382_ U-05 Engineer completes Assembly Bed. 07399_ System corrupted: Matter fused (-8). 07403_ L-41 Fighter knocked back. 07408_ U-05 Engineer completes Assembly Bed. 07410_ L-41 Fighter destroyed. 07413_ B-48 Gladiator destroyed. 07416_ System corrupted: Imp. Medium Armor Plating fused. 07417_ U-05 Engineer builds a Door. 07447_ System corrupted: Matter fused (-5). 07477_ VWX57>JY%DCW1 F9QZE= 9/GSWFR>W 07492_ System corrupted: Heat flow error (+294). 07518_ Slug penetrates Wall. 07538_ System corrupted: Heat flow error (+154). 07552_ Acquired Weapon Cycler. 07563_ System corrupted: Component data lost. Map ----- +----------------------------------------------------+ | # ?"" # ?? ? ???? ???????????????????????? | | #+### "?" # """"????????????????????????????????? | | ### ? ??# """"????????????????????????????????? | | # "?" # ?"""??"??????????????????????????????? | | +?""" # "???????????????????????????????????? | | # """?# ?""?"????????????????????????????????? | | /%### # ""???"??????????????????????????????? | | =######### ??""????????????????????????????????? | | # ##?? ? ???????????????????????????????? | | # #??? ??????????????????????????????????? | | # #? ??? ??? ???????????????????????? | | + """ ###?##????????? ???????????????????????? | | # """ ## ??????? ?? ??????#????????????????? | | # # """ #? ? ? ????# ???????????????????????? | | # ########??? """?????+ ??????????????????????? | | # #?##???## ? ""??????# ???? ??????????????? | | # ##?##?#??? ""? """ # """?? ?????????????????? | | # #?####?###?##?#??#???# ""F?????? ?????????????? | | # #?#?##############???# ??? ????????????????? | | # ##### #??## ??? ???? ????????????? | | + + ##### ??? ??? ?? ??????????? | | # # """ """ ###?# #?????????????????????? | | # # """ """ !#?#?# #???? ????????????????? | | # # """ """ ##### # ???? ??????????????? | | # # ##### + ????? ? ????????????? | | + + """ ??##?## @ #??????????#??????????? | | # # """ ##### #?? ?? ???????????????? | | # # "" """ ##### #??????????? ?????????? | | # # "Y ?#???# t # ????""??#??????????? | | # # "" ! ! ##??# #???????? ?? ????r????? | | # ##?## r##??#??##?????????????? | | ################## r###????#?###??????????? | | ## # ##? ?? ???? ????r????? | | "" [ # #? ?? ???????????????? | | ## + Y" ##??"""??????????????? | | ######## """"""" # #????????????????????? | | # ? # """"""" # rk #???"?? ??#??????????? | | ? ? # """"""" ### ####?? "" ?????????????? | | #?"?? ?# """"""" ### #??????????????????????? | | # """??#################? ##?# ?????#????????????? | | ? ??"??#?????#######?#?? ??? "?" ?????????????? | | #????? ???? ?? ??? ? ?? ??? ??????????????????? | | # ? ?????? ?? ?? ? ??? ?????????????????????? | | # ? ? ? ? ? ?? ? ?? ? ??? ?????????????????? | | # ??" ?##? ?###??#???????? ??? ?????????????????? | | #?"?? #?? ##?#?###?????? ##????????????????????? | | #?"? ????#?#???##??????? #?????????????????????? | | ??"?"? ?#??#??###?#?#????? ????????????????r?????? | | ????"? ##???##?????????? ??? ????????????????????? | | ????????????? ?? ??????? ????????????????????????? | +----------------------------------------------------+ Best States ------------- Heat Dissipation 62 Energy Generation 16 Energy Capacity 290 Matter Stores 300 Matter Capacity 300 Sight Range 18 Robot Scan Range 15 Terrain Scan Range 16 Terrain Scan Density 110 Armor Coverage 750 Resistance: KI 30 Weapon Cycling 20 Evasion (%) 44 Targeting Accuracy 8 Core Analysis 6 Recoil Reduction 4 Matter Filtering 30 Item Schematics ----------------- Cargo Storage Unit | -10/Materials | Hacked Adv. Treads | -8/Materials | Scanalyzed Hacking Suite | -7/Factory | Scanalyzed Robot Schematics ------------------ None Fabricated ------------ Nothing Repaired ---------- Arm. Wheel | 99% | -8/Storage | Broken Assault Cannon | 6% | -8/Storage Hrd. Medium Armor Plating | 75% | -7/Factory Studied --------- Wheel | -9/Materials | Hacked Assault Cannon | -7/Factory | Hacked Arm. Wheel | -7/Factory | Hacked Med. Treads | -7/Factory | Hacked Adv. Treads | -7/Factory | Hacked Deuterium Engine | -7/Factory | Hacked Imp. Datajack | -7/Factory | Hacked Arm. Huge Wheel | -7/Factory | Hacked Alien Tech Used ----------------- None Achievements -------------- Junior Dev Challenges ------------ None Game ------ Seed ReinforcedShrapnelBotcube Manual? 0 Play Time 01:19:20 Cumulative 114.4 hours Start 2026.01.11 @ 18:41:18 End 2026.01.12 @ 00:05:06 Sessions 3 Manual Loads 0 Difficulty Rogue Special Mode None Game No. 120 Rogue 120 Adventurer 0 Explorer 0 Win Type - Total 0 Types 0/0/0/0/0/0/0/0/0/0 Lore% 63 Gallery% 48 Achievement% 40 Wizard Run 0 Options --------- Layout 0 ASCII 0 Keyboard 1 Movement Vi Keybinds 0 Fullscreen 2 Font 18/SmallcapsGlow Map View 76x50 Zoom Use 0% Tactical HUD 1 Map Filters NONE Filters NONE Steam 1 RUN: b5b0d987-9f3f-477d-98a8-4b66285c336b